bitfinex/quotes_ETHUSD_20230403
["timestamp","ask_amount","ask_price","bid_price","bid_amount"]
[1680547006078,0.2186,1830.1,1829.4,0.002]
[1680547006283,0.2186,1830.1,1829.2,9.002]
[1680547006412,0.2186,1830.1,1829.2,5.002]
[1680547006616,0.02233052,1830.0,1829.2,9.008]
[1680547006869,0.02233052,1830.0,1829.9,5.0]
[1680547007165,0.11000001,1830.3,1829.9,9.008]
[1680547007467,0.11000001,1830.3,1829.9,9.002]
[1680547007468,0.02233052,1830.2,1829.9,9.002]
[1680547007824,0.02233052,1830.2,1830.0,9.0]
[1680547008170,0.02233052,1830.2,1830.0,9.002]
[1680547008473,2.19833052,1830.2,1830.0,9.002]
[1680547008681,0.11000001,1830.3,1830.0,0.008]
[1680547008981,0.11000001,1830.3,1830.0,9.0]
[1680547009138,0.11000001,1830.3,1830.0,9.002]
[1680547009469,0.11000001,1830.3,1830.2,14.0]
[1680547009669,0.11000001,1830.3,1830.2,14.008]
[1680547009836,1e-08,1830.3,1830.2,19.83561635]
[1680547010057,1e-08,1830.3,1830.2,22.1323033]
[1680547010258,0.01593211,1831.2,1830.2,22.1323033]
[1680547010259,0.00993211,1831.2,1831.1,15.0]
[1680547010575,0.00993211,1831.2,1831.1,23.03361113]
[1680547010774,0.00993211,1831.2,1831.1,15.002]
[1680547010939,0.00993211,1831.2,1831.1,15.0]
[1680547011279,0.002,1832.1,1831.2,0.5]
[1680547011485,0.27292,1832.0,1831.0,1.60144908]
[1680547011685,0.27292,1832.0,1830.9,0.002]
[1680547011996,0.27292,1832.0,1830.6,9.0]
[1680547011997,1.91097,1831.6,1830.6,9.0]
[1680547012130,1.91297,1831.6,1830.6,9.0]
[1680547012485,0.81912,1831.3,1830.6,9.0]
[1680547012632,0.82512,1831.3,1830.6,0.002]
[1680547012832,5.513,1831.0,1830.1,0.002]
[1680547013034,1.9118,1830.8,1830.3,8.998]
[1680547013354,0.19118,1830.7,1830.0,8.998]
[1680547013676,0.81945,1830.5,1830.0,9.0]
[1680547013884,0.81945,1830.5,1830.0,0.002]
[1680547013885,1.91233,1830.3,1830.0,0.002]
[1680547014043,0.2732,1830.1,1829.8,9.0]
[1680547014231,0.2732,1830.1,1830.0,8.9]
[1680547014436,0.2792,1830.1,1830.0,8.902]
[1680547014632,0.2232,1830.1,1830.0,8.902]
[1680547014872,0.27316,1830.4,1830.2,8.85]
[1680547015073,0.27316,1830.4,1830.3,8.85]
[1680547015231,0.27316,1830.4,1830.3,8.852]
[1680547015449,0.27316,1830.4,1830.3,0.002]
[1680547015692,2.186,1830.4,1830.2,8.85]
[1680547015908,0.01633052,1830.7,1830.2,8.854]
[1680547016111,0.01233052,1830.7,1830.2,0.002]
[1680547016249,0.01233052,1830.7,1830.2,5.821]
[1680547016560,0.28545052,1830.7,1830.2,14.673]
[1680547016767,0.28545052,1830.7,1830.2,8.858]
[1680547016990,2.184,1830.6,1830.2,8.852]
[1680547017167,0.81945,1830.5,1830.2,8.858]
[1680547017378,0.81945,1830.5,1830.2,0.002]
[1680547017578,0.81945,1830.5,1830.4,8.85]
[1680547017800,0.81945,1830.5,1830.4,0.002]
[1680547018096,0.81945,1830.5,1830.1,8.8]
[1680547018097,3.28312034,1830.5,1830.1,8.802]
[1680547018263,0.15,1830.3,1830.1,0.002]
[1680547018453,2.06234,1830.2,1830.0,0.002]
[1680547018656,2.06234,1830.2,1830.1,8.8]
[1680547018657,5.23268884,1830.2,1830.1,8.8]
[1680547018856,5.15034,1830.2,1830.1,4.71967606]
[1680547019095,9.1930185,1830.2,1830.1,4.71767606]
[1680547019307,8.7080525,1830.2,1830.1,4.71767606]
[1680547019465,8.7080525,1830.2,1830.0,0.008]
[1680547019813,0.8197,1829.9,1829.8,4.71767606]
[1680547019969,0.8197,1829.9,1829.8,4.72367606]
[1680547020169,1.95167,1829.9,1829.7,0.002]
[1680547020357,0.006,1829.8,1829.0,4.71767606]
[1680547020554,1.913,1829.6,1829.0,0.006]
[1680547020865,2.3773,1829.5,1828.8,0.1]
[1680547021098,0.002,1829.6,1829.5,5.71767606]
[1680547021269,0.006,1830.0,1829.7,4.71767606]
[1680547021270,0.006,1829.8,1829.7,4.71767606]
[1680547021472,0.27522,1830.0,1829.8,1.0]
[1680547021473,0.27323,1830.0,1829.8,1.0]
[1680547021758,0.2732,1830.2,1829.6,4.71767606]
[1680547021997,0.2732,1830.2,1830.0,4.71767606]
[1680547022310,0.27319,1830.3,1830.1,5.821]
[1680547022508,0.008,1830.8,1830.7,4.71767606]
[1680547022712,0.11000001,1831.3,1831.1,4.71767606]
[1680547022917,0.38303001,1831.3,1831.2,4.71167606]
[1680547023234,0.38303001,1831.3,1831.2,0.01661055]
[1680547023512,0.38303001,1831.3,1831.2,0.006]
[1680547023658,0.38303001,1831.3,1831.2,4.71767606]
[1680547024160,0.11000001,1831.3,1831.2,4.71767606]
[1680547024360,0.38303001,1831.3,1831.2,10.53867606]
[1680547024561,5.45315,1833.9,1833.0,4.71167606]
[1680547024799,0.54545,1833.4,1832.9,0.002]
[1680547025018,0.6011281,1833.7,1833.0,5.63398123]
[1680547025160,0.54543,1833.4,1833.0,0.004]
[1680547025400,0.54543,1833.4,1832.9,0.002]
[1680547025614,0.0557681,1833.7,1833.0,1.97472263]
[1680547025615,0.27276,1833.1,1833.0,1.97472263]
[1680547025824,0.27276,1833.1,1832.9,0.002]
[1680547025968,0.27276,1833.1,1831.9,1.0]
[1680547025969,1.0,1832.8,1832.5,0.57286657]
[1680547026277,2.03204517,1832.7,1832.1,0.002]
[1680547026605,1.9103,1832.2,1831.6,4.63598123]
[1680547026805,1.9103,1832.2,1831.9,4.63398123]
[1680547026965,1.9103,1832.2,1831.8,0.002]
[1680547026966,0.81879,1832.0,1831.8,0.002]
[1680547027159,0.81879,1832.0,1831.9,4.63398123]
[1680547027384,0.002,1832.3,1832.2,16.45498123]
[1680547027590,0.006,1832.8,1832.7,4.63398123]
[1680547027815,1.55882517,1833.2,1833.1,4.63398123]
[1680547028016,1.83156517,1833.2,1833.0,0.008]
[1680547028179,0.03315652,1833.1,1832.8,0.006]
[1680547028364,0.27277,1833.0,1832.2,5.821]
[1680547028566,1.27277,1833.0,1832.2,0.002]
[1680547028797,1.27277,1833.0,1832.4,4.63398123]
[1680547028798,2.309277,1832.9,1832.4,4.63398123]
[1680547029102,0.03315652,1833.1,1832.4,4.63398123]
[1680547029103,0.27281,1832.8,1832.4,4.63398123]
[1680547029302,2.73554,1833.1,1832.8,5.821]
[1680547029303,0.54554,1833.1,1832.8,5.821]
[1680547029485,0.54554,1833.1,1833.0,4.63398123]
[1680547029687,0.8183,1833.1,1832.9,0.008]
[1680547029902,0.8183,1833.1,1832.7,4.63998123]
[1680547030059,0.7683,1833.1,1833.0,4.63398123]
[1680547030263,0.7683,1833.1,1832.9,4.64198123]
[1680547030474,0.27276,1833.1,1833.0,6.0]
[1680547030812,0.11000001,1833.3,1832.9,4.63398123]
[1680547030813,1.0,1833.0,1832.9,0.004]
[1680547030963,4.63769,1832.8,1832.3,0.45745518]
[1680547031168,4.63769,1832.8,1832.3,0.45545518]
[1680547031359,2.45967034,1832.7,1832.3,4.63398123]
[1680547031663,2.45483,1832.6,1832.3,4.63398123]
[1680547032019,2.45483,1832.6,1832.2,0.002]
[1680547032020,2.91016,1832.3,1832.2,0.002]
[1680547032165,0.996,1831.6,1831.5,0.004]
[1680547032362,2.01049,1831.6,1831.5,4.64398123]
[1680547032605,4.19449,1831.6,1831.5,4.63998123]
[1680547032772,1.91089,1831.6,1831.5,4.63998123]
[1680547033177,1.91089,1831.6,1831.5,4.64598123]
[1680547033573,1.91089,1831.6,1831.5,0.006]
[1680547033920,7.92766811,1831.6,1831.3,4.99107186]
[1680547034076,3.0,1831.5,1831.3,4.99107186]
[1680547034278,3.0,1831.5,1831.2,0.008]
[1680547034279,4.055,1831.3,1831.2,0.008]
[1680547034578,3.81909,1831.3,1831.1,5.0]
[1680547034778,3.81909,1831.3,1831.1,0.008]
[1680547034978,0.81909,1831.3,1830.9,0.02233192]
[1680547035275,0.81909,1831.3,1830.7,0.02233435]
[1680547035481,0.81909,1831.3,1830.8,5.821]
[1680547035690,0.81909,1831.3,1831.1,5.821]
[1680547035907,0.81909,1831.3,1831.2,11.821]
[1680547036110,0.81909,1831.3,1831.2,0.006]
[1680547036270,0.900999,1831.3,1831.2,0.48823905]
[1680547036805,0.900999,1831.3,1831.2,3.25426123]
[1680547036989,0.81909,1831.3,1831.2,0.48823905]
[1680547037399,0.81909,1831.3,1830.8,5.008]
[1680547037598,0.81909,1831.3,1830.8,13.58902218]
[1680547037782,0.081909,1831.2,1830.8,0.002]
[1680547038118,0.081909,1831.2,1830.0,5.0]
[1680547038119,1.91143,1831.1,1830.2,1.0]
[1680547038415,1.91143,1831.1,1830.5,1.0]
[1680547038582,0.191143,1831.0,1830.5,2.76602218]
[1680547038782,0.81928,1830.9,1830.3,0.008]
[1680547038999,0.81928,1830.9,1829.9,0.1]
[1680547039000,3.76602218,1830.8,1829.9,0.1]
[1680547039311,1.91199,1830.6,1830.0,1.0]
[1680547039468,1.91199,1830.6,1829.9,0.1]
[1680547039469,2.76602218,1830.5,1829.9,0.1]
[1680547039669,3.0,1830.4,1829.9,0.1]
[1680547039895,3.85141,1830.3,1829.9,0.1]
[1680547040107,3.0,1830.2,1829.9,0.1]
[1680547040305,1.91244,1830.1,1829.9,1.1]
[1680547040522,1.91244,1830.1,1829.9,0.1]
[1680547040703,0.464464,1830.0,1829.9,0.1]
[1680547040900,0.464464,1830.0,1829.9,1.1]
[1680547040901,5.650464,1830.0,1829.9,1.1]
[1680547041122,5.652464,1830.0,1829.9,0.047218]
[1680547041848,3.27522,1830.0,1829.9,1.047218]
[1680547041975,0.27322,1830.0,1829.9,1.047218]
[1680547042176,0.27322,1830.0,1829.9,15.047218]
[1680547042406,0.27322,1830.0,1829.9,1.57625245]
[1680547042709,1.6042399,1832.0,1831.1,1.0]
[1680547042888,0.81886,1831.8,1831.4,1.0]
[1680547043089,0.81886,1831.8,1830.7,1.0]
[1680547043090,0.81886,1831.8,1831.1,1.0]
[1680547043290,3.54849,1831.8,1831.1,1.0]
[1680547043521,2.184,1831.7,1831.1,1.0]
[1680547043725,1.91096,1831.6,1831.1,1.0]
[1680547043880,1.91096,1831.6,1831.4,1.0]
[1680547044080,2.375096,1831.5,1830.7,0.002]
[1680547044287,1.91124,1831.3,1831.2,1.0]
[1680547044992,4.09524,1831.3,1831.2,1.0]
[1680547045205,4.09524,1831.3,1830.7,0.008]
[1680547045521,4.64249,1830.9,1830.6,1.0]
[1680547045689,4.64249,1830.9,1830.8,1.0]
[1680547045902,0.27308,1830.9,1830.8,1.0]
[1680547046416,0.81925,1830.9,1830.8,1.52250336]
[1680547046582,1.09214,1831.3,1831.2,1.0]
[1680547046922,0.27303,1831.3,1831.2,4.10492766]
[1680547047106,0.27303,1831.3,1831.2,3.11092766]
[1680547047628,0.27303,1831.3,1831.2,1.006]
[1680547047784,0.27303,1831.3,1831.2,1.0]
[1680547047992,0.27303,1831.3,1831.0,1.0]
[1680547048304,0.27303,1831.3,1831.2,1.0]
[1680547048521,0.464148,1831.3,1831.2,1.0]
[1680547049423,0.464148,1831.3,1831.2,1.48823905]
[1680547049593,0.464148,1831.3,1831.2,0.48823905]
[1680547050083,0.5,1831.2,1830.6,1.006]
[1680547050418,6.321,1831.0,1830.6,1.0]
[1680547050604,9.64027,1830.9,1830.6,1.0]
[1680547050807,11.82627,1830.9,1830.5,1.0]
[1680547051010,4.64338,1830.6,1830.5,1.0]
[1680547051192,7.64338,1830.6,1830.5,1.0]
[1680547051381,7.64338,1830.6,1830.1,0.006]
[1680547051382,7.64538,1830.6,1830.1,0.006]
[1680547051577,3.0,1830.5,1830.0,0.006]
[1680547051822,1.91226,1830.3,1830.0,0.006]
[1680547052031,1.09272,1830.3,1830.2,23.021]
[1680547052182,0.006,1830.9,1830.2,23.021]
[1680547052183,2.72999,1831.6,1831.5,1.0]
[1680547052383,2.73599,1831.6,1831.5,5.821]
[1680547052623,4.64688,1831.6,1831.5,0.002]
[1680547052790,4.64688,1831.6,1831.3,1.006]
[1680547052791,6.83088,1831.6,1831.3,1.0]
[1680547052981,1.91121,1831.3,1831.0,1.0]
[1680547053183,2.102331,1831.3,1830.8,1.0]
[1680547053413,2.102331,1831.3,1830.4,5.821]
[1680547053414,2.184,1831.2,1830.4,5.821]
[1680547053583,2.184,1831.2,1830.5,1.0]
[1680547053584,4.64228,1831.0,1830.5,1.0]
[1680547053786,4.64228,1831.0,1830.9,1.0]
[1680547054111,4.64828,1831.0,1830.9,1.0]
[1680547054684,7.64828,1831.0,1830.9,1.0]
[1680547054910,7.65028,1831.0,1830.9,1.0]
[1680547055311,4.64628,1831.0,1830.9,1.0089479]
[1680547055495,0.81922,1831.0,1830.9,10.59597008]
[1680547055696,0.81922,1831.0,1830.9,9.59797008]
[1680547055911,1.09212,1831.3,1831.2,1.0]
[1680547056114,1.63818,1831.3,1831.2,1.0]
[1680547056438,1.91121,1831.3,1831.2,1.0]
[1680547056598,2.102331,1831.3,1831.2,1.0]
[1680547056926,1.91121,1831.3,1831.2,1.0]
[1680547057517,1.91121,1831.3,1831.0,1.0]
[1680547057830,36.91121,1831.3,1831.0,1.0]
[1680547058139,36.91121,1831.3,1830.4,0.002]
[1680547058140,5.821,1831.1,1830.4,0.002]
[1680547058433,5.821,1831.1,1830.3,1.51762484]
[1680547058434,16.11236,1830.9,1830.3,1.51762484]
[1680547058737,18.30436,1830.9,1830.5,1.0]
[1680547058904,5.184,1830.8,1830.5,1.0]
[1680547059236,0.81934,1830.7,1830.5,1.0]
[1680547059752,0.81934,1830.7,1830.3,8.36096408]
[1680547059942,0.81934,1830.7,1830.6,1.0]
[1680547060145,0.81934,1830.7,1830.3,1.51762484]
[1680547060452,4.64351,1830.5,1830.4,1.02386757]
[1680547060710,7.64351,1830.5,1830.4,1.02386757]
[1680547060869,7.64351,1830.5,1830.4,0.02386757]
[1680547060870,10.41153218,1830.5,1830.4,0.02386757]
[1680547061203,18.41853218,1830.5,1830.4,7.57e-06]
[1680547061353,7.64551,1830.5,1830.3,1.51762484]
[1680547061559,3.764551,1830.4,1830.3,1.51762484]
[1680547061794,3.764551,1830.4,1830.3,2.51762484]
[1680547061795,9.500991,1830.4,1830.3,2.51762484]
[1680547062119,9.502991,1830.4,1830.3,2.51762484]
[1680547063312,14.45501318,1830.4,1830.3,2.51762484]
[1680547063623,14.96268352,1830.4,1829.9,1.055218]
[1680547063906,4.64433,1830.2,1829.9,1.047218]
[1680547064054,0.81966,1830.0,1829.9,1.047218]
[1680547064272,1.31966,1830.0,1829.9,1.047218]
[1680547064476,0.81966,1830.0,1829.9,1.047218]
[1680547064711,17.66932818,1830.0,1829.6,1.0]
[1680547064927,11.58702218,1829.9,1829.4,1.0]
[1680547065235,10.65718,1829.8,1829.3,0.1]
[1680547065432,10.65718,1829.8,1829.5,1.0]
[1680547065433,5.76602218,1829.7,1829.5,1.0]
[1680547065652,5.76602218,1829.7,1829.3,0.1]
[1680547065653,0.81984,1829.6,1829.3,0.1]
[1680547065773,0.081984,1829.5,1829.3,0.1]
[1680547066131,10.99126597,1829.4,1829.1,0.1]
[1680547066431,1.91518,1829.4,1829.2,1.0]
[1680547066581,1.91318,1829.4,1829.2,1.0]
[1680547066777,0.81993,1829.4,1829.3,5.821]
[1680547067027,1.91318,1829.4,1829.3,6.723]
[1680547067223,1.91318,1829.4,1829.3,3.76802218]
[1680547067530,1.91318,1829.4,1829.3,0.03285957]
[1680547067691,2.104498,1829.4,1829.3,0.03285957]
[1680547068443,4.87652018,1829.4,1829.1,0.1]
[1680547068572,11.81702218,1829.3,1829.1,0.1]
[1680547068779,7.46859222,1829.2,1829.1,0.1]
[1680547069021,9.88659222,1829.2,1829.1,0.1]
[1680547069194,12.89259222,1829.2,1829.1,0.1]
[1680547069892,13.2426144,1829.2,1829.1,0.1]
[1680547070231,1.56223834,1829.4,1829.3,1.0]
[1680547070232,1.09327,1829.4,1829.3,1.0]
[1680547070375,0.81995,1829.4,1829.3,1.0]
[1680547071092,0.82595,1829.4,1829.3,1.0]
[1680547071294,0.81995,1829.4,1829.3,2.0]
[1680547071538,0.82595,1829.4,1829.3,1.0]
[1680547071687,0.81995,1829.4,1829.3,2.0]
[1680547071875,0.82595,1829.4,1829.3,2.0]
[1680547072380,0.82595,1829.4,1829.3,2.03285957]
[1680547072936,0.81995,1829.4,1829.3,2.03285957]
[1680547073226,0.27931,1829.4,1829.3,2.03285957]
[1680547073434,0.27331,1829.4,1829.3,2.03285957]
[1680547073814,0.006,1829.5,1829.3,4.79888175]
[1680547073979,0.27331,1829.5,1829.4,1.0]
[1680547074180,0.27331,1829.5,1829.4,1.02987139]
[1680547074393,0.27329,1829.6,1829.5,2.0]
[1680547074935,0.27329,1829.6,1829.5,1.0]
[1680547075082,0.27329,1829.6,1829.5,2.0]
[1680547075529,0.55254,1829.7,1829.6,1.0]
[1680547075530,0.006,1829.7,1829.6,1.0]
[1680547075806,8.54678,1830.4,1830.0,1.0]
[1680547075807,0.006,1830.1,1830.0,1.0]
[1680547075959,0.002,1830.4,1830.0,1.0]
[1680547075960,0.27318,1830.3,1830.2,2.0]
[1680547076162,0.006,1830.4,1830.3,1.0]
[1680547076380,0.002,1830.7,1830.6,1.0]
[1680547076381,0.55224,1830.7,1830.6,1.0]
[1680547076598,0.82535,1830.7,1830.6,1.0]
[1680547076800,0.27911,1830.7,1830.2,0.002]
[1680547076951,0.27311,1830.7,1830.6,1.0]
[1680547077152,0.27911,1830.7,1830.6,0.95]
[1680547077469,3.12166418,1830.7,1830.6,0.95]
[1680547077689,5.30566418,1830.7,1830.2,0.95]
[1680547077858,2.76602218,1830.6,1830.3,0.95]
[1680547078198,15.92749,1830.5,1830.3,0.95]
[1680547078412,6.03918218,1830.4,1830.3,0.95]
[1680547078612,11.86218218,1830.4,1830.3,0.95]
[1680547078785,12.09218218,1830.4,1830.3,0.95]
[1680547079112,14.5097354,1830.4,1830.3,0.95]
[1680547079452,8.4587354,1830.4,1830.3,0.95]
[1680547079652,16.97340574,1830.4,1830.3,0.95]
[1680547080106,17.51972574,1830.4,1830.3,0.95]
[1680547080855,5.821,1830.2,1829.6,0.006]
[1680547081051,5.821,1830.0,1829.5,0.55624639]
[1680547081284,8.26083218,1829.9,1829.5,0.55624639]
[1680547081456,10.44883218,1829.9,1829.5,0.55624639]
[1680547081663,10.44883218,1829.9,1829.3,0.004]
[1680547081664,7.68281,1829.9,1829.3,0.004]
[1680547081892,7.68281,1829.9,1829.5,0.55624639]
[1680547081893,5.49681,1829.9,1829.5,0.55624639]
[1680547082071,1.91471,1829.9,1829.6,0.55624639]
[1680547082278,1.91271,1829.9,1829.6,0.55624639]
[1680547082725,1.91271,1829.9,1829.4,0.57859662]
[1680547083010,1.91271,1829.9,1829.8,0.55624639]
[1680547083011,2.103981,1829.9,1829.8,0.55624639]
[1680547083620,2.103981,1829.9,1829.4,0.02235023]
[1680547083790,2.103981,1829.9,1829.5,0.55624639]
[1680547084931,2.186,1829.8,1829.5,0.55624639]
[1680547085136,10.32951,1829.7,1829.2,0.55624639]
[1680547085278,10.32951,1829.7,1829.1,0.1]
[1680547085279,10.33151,1829.7,1829.1,0.1]
[1680547085479,10.33151,1829.7,1829.3,0.55624639]
[1680547085681,3.0,1829.6,1829.5,0.55624639]
[1680547085928,4.852991,1829.6,1829.5,0.55624639]
[1680547086310,7.61901318,1829.6,1829.5,0.58312993]
[1680547086628,7.62101318,1829.6,1829.5,0.02688354]
[1680547086953,7.040991,1829.6,1829.4,0.53312993]
[1680547087079,0.76210132,1829.5,1829.4,0.53312993]
[1680547087276,5.4411935,1829.5,1829.1,0.1]
[1680547087474,3.31014153,1829.4,1828.4,0.12923296]
[1680547087708,4.64707,1829.1,1828.5,8.58702218]
[1680547087978,4.65307,1829.1,1828.7,1.0]
[1680547088177,4.66960531,1829.1,1828.7,2.76602218]
[1680547088382,0.27935,1829.1,1828.9,3.74948687]
[1680547088625,0.27335,1829.2,1829.1,0.98346469]
[1680547088804,0.006,1829.4,1829.1,9.57048687]
[1680547089120,7.65009,1830.2,1829.3,5.821]
[1680547089121,1.63963,1829.7,1829.3,5.821]
[1680547089327,0.27928,1829.7,1829.3,5.823]
[1680547089624,0.82581,1829.7,1829.4,8.58702218]
[1680547089804,2.73428,1830.0,1829.4,8.58702218]
[1680547089805,0.006,1829.8,1829.6,5.821]
[1680547090004,0.006,1829.8,1829.7,8.58702218]
[1680547090005,0.27325,1829.8,1829.7,8.58702218]
[1680547090174,0.27325,1829.8,1829.7,8.58902218]
[1680547090381,0.27924,1829.9,1829.7,8.58902218]
[1680547090606,0.27922,1830.0,1829.7,8.61136873]
[1680547090791,0.006,1830.1,1829.9,5.821]
[1680547091001,0.437378,1830.3,1830.0,9.57048687]
[1680547091002,0.443378,1830.3,1830.0,9.57048687]
[1680547091305,0.437378,1830.3,1830.0,9.59482975]
[1680547091480,0.437378,1830.3,1830.1,2.76602218]
[1680547091826,0.437378,1830.3,1830.2,8.58702218]
[1680547091978,0.437378,1830.3,1830.2,8.61136262]
[1680547092922,0.006,1830.8,1830.6,5.821]
[1680547093220,0.2731,1830.9,1830.7,8.58702218]
[1680547093406,0.38307001,1831.1,1830.7,8.58902218]
[1680547093592,0.27308,1831.0,1830.7,8.58902218]
[1680547093792,0.11000001,1831.1,1830.7,9.57248687]
[1680547094006,0.39959532,1831.1,1830.7,8.58902218]
[1680547094541,0.38306001,1831.1,1830.7,8.58902218]
[1680547094740,0.01653531,1831.0,1830.7,2.76802218]
[1680547094945,0.27308,1830.9,1830.8,2.76602218]
[1680547095820,0.01653531,1831.0,1830.8,8.58702218]
[1680547096030,0.01653531,1831.0,1830.9,8.58702218]
[1680547096228,0.01653531,1831.0,1830.9,8.58902218]
[1680547096656,0.01653531,1831.0,1830.9,0.002]
[1680547096657,0.28960531,1831.0,1830.9,0.002]
[1680547096863,0.28960531,1831.0,1830.5,0.002]
[1680547097017,0.49340484,1831.0,1830.4,0.002]
[1680547097217,2.73255749,1830.9,1830.1,0.004]
[1680547097458,1.91191,1830.7,1830.0,0.006]
[1680547097643,1.91191,1830.7,1829.8,0.006]
[1680547097843,1.91191,1830.7,1829.9,5.8433441]
[1680547098044,1.91191,1830.7,1829.9,5.8513441]
[1680547098256,4.6438,1830.4,1829.9,0.008]
[1680547098458,4.6438,1830.4,1829.7,0.006]
[1680547098825,4.6438,1830.4,1829.6,0.006]
[1680547099259,7.40982218,1830.4,1829.6,0.006]
[1680547099418,0.81963,1830.1,1829.6,0.006]
[1680547099821,0.81963,1830.1,1829.5,0.006]
[1680547100073,0.81963,1830.1,1829.5,2.77202218]
[1680547100282,4.0928,1830.2,1829.8,2.76602218]
[1680547100283,0.2752,1830.2,1829.8,2.76602218]
[1680547100602,2.184,1830.9,1829.8,2.76602218]
[1680547100603,0.002,1830.7,1830.4,3.03917218]
[1680547100724,0.11000001,1831.1,1830.9,0.27308]
[1680547101050,0.11000001,1831.1,1831.0,26.96902218]
[1680547101234,0.11000001,1831.1,1831.0,19.24409218]
[1680547101452,0.11000001,1831.1,1831.0,12.04409218]
[1680547101661,0.11000001,1831.1,1831.0,8.61135286]
[1680547101864,0.11900001,1832.2,1831.8,2.76602218]
[1680547102192,0.11700001,1832.2,1831.9,5.821]
[1680547102497,0.11700001,1832.2,1832.1,5.821]
[1680547102797,0.11700001,1832.2,1832.1,8.58902218]
[1680547103105,0.11700001,1832.2,1832.1,8.61133946]
[1680547103263,0.11700001,1832.2,1832.1,0.002]
[1680547103466,0.38989001,1832.2,1831.4,0.006]
[1680547103644,0.59445601,1832.2,1831.4,2.76602218]
[1680547104048,0.59445601,1832.2,1831.2,0.008]
[1680547104049,1.0,1832.1,1831.2,0.002]
[1680547104243,1.0,1831.9,1830.8,5.821]
[1680547104493,0.81906,1831.4,1830.8,5.823]
[1680547104697,1.09183,1831.8,1830.9,5.821]
[1680547104848,0.27301,1831.4,1830.9,5.823]
[1680547105052,0.27301,1831.4,1830.9,5.829]
[1680547105298,0.273,1831.5,1830.9,5.829]
[1680547105603,4.481961,1831.8,1831.1,5.821]
[1680547105604,0.002,1831.8,1831.1,5.821]
[1680547105781,0.32156601,1832.2,1831.3,5.821]
[1680547105954,0.32156601,1832.2,1831.3,10.823]
[1680547105955,0.11700001,1832.2,1831.3,10.823]
[1680547106151,0.11700001,1832.2,1831.4,0.0223258]
[1680547106369,0.11700001,1832.2,1831.5,5.821]
[1680547106607,0.11700001,1832.2,1831.5,5.823]
[1680547106751,0.11700001,1832.2,1831.5,6.09599]
[1680547106945,0.11700001,1832.2,1831.7,5.821]
[1680547107160,0.11700001,1832.2,1831.9,5.821]
[1680547107358,0.11700001,1832.2,1832.0,8.58702218]
[1680547107607,0.11700001,1832.2,1832.0,8.58902218]
[1680547108123,0.11700001,1832.2,1832.1,8.58702218]
[1680547108259,0.11700001,1832.2,1832.1,8.58902218]
[1680547108464,0.11700001,1832.2,1832.1,13.58902218]
[1680547108807,0.11700001,1832.2,1832.1,8.58902218]
[1680547109860,1e-08,1832.2,1832.1,5.004]
[1680547110076,1e-08,1832.2,1832.1,13.88424946]
[1680547110279,1e-08,1832.2,1832.1,10.79333946]
[1680547110573,1e-08,1832.2,1832.1,19.26624946]
[1680547110963,1e-08,1832.2,1832.1,20.88473841]
[1680547111298,1e-08,1832.2,1832.1,11.04393218]
[1680547111456,1e-08,1832.2,1832.1,15.77102218]
[1680547111656,1e-08,1832.2,1832.1,19.24393218]
[1680547111967,1e-08,1832.2,1832.1,19.5439198]
[1680547112289,1e-08,1832.2,1832.1,29.74943567]
[1680547112487,1e-08,1832.2,1832.1,33.05343567]
[1680547113000,1e-08,1832.2,1832.1,30.05343567]
[1680547113169,1e-08,1832.2,1832.1,16.04393218]
[1680547113371,1e-08,1832.2,1832.1,10.77702218]
[1680547113577,1e-08,1832.2,1832.1,15.77102218]
[1680547114103,1e-08,1832.2,1832.1,10.77102218]
[1680547114303,1e-08,1832.2,1832.1,8.58902218]
[1680547114663,0.27289001,1832.2,1832.1,8.58902218]
[1680547114861,0.27289001,1832.2,1832.1,0.002]
[1680547114862,0.81868001,1832.2,1832.1,0.002]
[1680547115065,0.91154801,1832.2,1831.9,0.002]
[1680547115311,0.91154801,1832.2,1831.7,0.006]
[1680547115312,0.91154801,1832.2,1831.3,0.54323882]
[1680547115525,0.81883,1831.9,1831.2,7.19]
[1680547115818,0.81883,1831.9,1831.2,5.823]
[1680547116164,0.81883,1831.9,1831.3,5.821]
[1680547116366,0.81883,1831.9,1831.3,0.002]
[1680547116647,1.0,1831.8,1830.9,2.182]
[1680547116919,0.27303,1831.3,1831.0,2.76602218]
[1680547117082,0.273,1831.5,1831.1,8.58702218]
[1680547117263,0.273,1831.5,1831.1,8.58902218]
[1680547117809,0.273,1831.5,1831.2,8.58702218]
[1680547117965,0.273,1831.5,1831.2,0.002]
[1680547118167,1.273,1831.5,1830.7,0.006]
[1680547118371,1.354899,1831.5,1830.8,2.76602218]
[1680547118566,1.0,1831.3,1830.7,0.006]
[1680547118912,0.354899,1831.5,1830.5,5.0]
[1680547118913,1.91145,1831.1,1830.5,5.0]
[1680547119208,0.27307,1831.1,1830.7,5.821]
[1680547119375,3.008,1831.4,1830.7,5.823]
[1680547119376,3.28101,1831.4,1830.7,5.823]
[1680547119580,0.27301,1831.4,1830.9,5.821]
[1680547119764,0.81904,1831.4,1830.9,0.002]
[1680547119967,0.273,1831.5,1830.9,2.76602218]
[1680547120162,0.27302,1831.4,1830.7,0.002]
[1680547120389,0.27302,1831.4,1830.5,5.0]
[1680547120390,1.54599,1831.6,1830.8,2.76602218]